[Event "Titled Tuesday Blitz April 25 Late 2023"]
[White "Rastbod, Ali"]
[Black "Esipenko, Andrey"]
[WhiteFideId "12567477"]
[BlackFideId "24175439"]
[WhiteElo "2248"]
[BlackElo "2615"]
[Result "0-1"]
[Round "03"]
[TimeControl "180+2"]
[Date "2023.04.25"]
[WhiteClock "0:00:02"]
[BlackClock "0:00:02"]

1. c4 {[%clk 0:03:00]}  Nf6 {[%clk 0:02:58]} 2. Nc3 {[%clk 0:03:01]}  e6 {[%clk 0:02:56]} 3. e4 {[%clk 0:03:01]}  d5 {[%clk 0:02:56]} 4. e5 {[%clk 0:03:01]}  d4 {[%clk 0:02:56]} 5. exf6 {[%clk 0:03:02]}  dxc3 {[%clk 0:02:56]} 6. bxc3 {[%clk 0:03:03]}  Qxf6 {[%clk 0:02:56]} 7. d4 {[%clk 0:03:04]}  b6 {[%clk 0:02:57]} 8. Be2 {[%clk 0:03:04]}  Bb7 {[%clk 0:02:57]} 9. Bf3 {[%clk 0:03:04]}  Bxf3 {[%clk 0:02:58]} 10. Nxf3 {[%clk 0:03:05]}  Bd6 {[%clk 0:02:58]} 11. Qa4+ {[%clk 0:03:06]}  c6 {[%clk 0:02:58]} 12. O-O {[%clk 0:03:02]}  O-O {[%clk 0:02:58]} 13. Bg5 {[%clk 0:03:01]}  Qf5 {[%clk 0:02:58]} 14. Bh4 {[%clk 0:03:00]}  Rc8 {[%clk 0:02:58]} 15. Bg3 {[%clk 0:02:58]}  Be7 {[%clk 0:02:40]} 16. Bxb8 {[%clk 0:02:01]}  Rcxb8 {[%clk 0:02:33]} 17. Qxc6 {[%clk 0:02:01]}  Rc8 {[%clk 0:02:32]} 18. Qa4 {[%clk 0:02:01]}  Qd3 {[%clk 0:02:19]} 19. Ne5 {[%clk 0:01:56]}  Qxc3 {[%clk 0:02:18]} 20. Qd7 {[%clk 0:01:27]}  Kf8 {[%clk 0:02:16]} 21. Rac1 {[%clk 0:01:22]}  Qa3 {[%clk 0:02:12]} 22. Rfd1 {[%clk 0:01:19]}  Qd6 {[%clk 0:02:02]} 23. Qa4 {[%clk 0:01:13]}  g6 {[%clk 0:01:57]} 24. Qb3 {[%clk 0:01:08]}  Kg7 {[%clk 0:01:53]} 25. Qe3 {[%clk 0:01:05]}  Qa3 {[%clk 0:01:19]} 26. Qf4 {[%clk 0:01:03]}  f6 {[%clk 0:01:18]} 27. Ng4 {[%clk 0:01:01]}  Qxa2 {[%clk 0:01:18]} 28. d5 {[%clk 0:00:32]}  e5 {[%clk 0:00:45]} 29. Qh6+ {[%clk 0:00:28]}  Kh8 {[%clk 0:00:46]} 30. d6 {[%clk 0:00:28]}  Bf8 {[%clk 0:00:46]} 31. Qh4 {[%clk 0:00:23]}  Rxc4 {[%clk 0:00:47]} 32. Rxc4 {[%clk 0:00:19]}  Qxc4 {[%clk 0:00:46]} 33. Qxf6+ {[%clk 0:00:19]}  Bg7 {[%clk 0:00:40]} 34. Qf3 {[%clk 0:00:19]}  Rf8 {[%clk 0:00:36]} 35. d7 {[%clk 0:00:13]}  Rd8 {[%clk 0:00:18]} 36. Ne3 {[%clk 0:00:10]}  Qa4 {[%clk 0:00:16]} 37. Qb7 {[%clk 0:00:06]}  Bf6 {[%clk 0:00:14]} 38. h3 {[%clk 0:00:05]}  Kg7 {[%clk 0:00:12]} 39. Rd6 {[%clk 0:00:05]}  e4 {[%clk 0:00:11]} 40. g3 {[%clk 0:00:03]}  h5 {[%clk 0:00:07]} 41. Qc7 {[%clk 0:00:03]}  h4 {[%clk 0:00:08]} 42. Rxf6 {[%clk 0:00:03]}  Qa1+ {[%clk 0:00:08]} 43. Kg2 {[%clk 0:00:03]}  Qxf6 {[%clk 0:00:09]} 44. Nd5 {[%clk 0:00:02]}  Qf3+ {[%clk 0:00:09]} 45. Kg1 {[%clk 0:00:02]}  hxg3 {[%clk 0:00:10]} 46. fxg3 {[%clk 0:00:02]}  Qd1+ {[%clk 0:00:03]} 47. Kh2 {[%clk 0:00:03]}  Qd2+ {[%clk 0:00:02]} 48. Kg1 {[%clk 0:00:04]}  Qe1+ {[%clk 0:00:02]} 49. Kh2 {[%clk 0:00:04]}  Qe2+ {[%clk 0:00:02]} 50. Kg1 {[%clk 0:00:04]}  Qd1+ {[%clk 0:00:02]} 51. Kh2 {[%clk 0:00:05]}  Qd2+ {[%clk 0:00:03]} 52. Kg1 {[%clk 0:00:05]}  Qg5 {[%clk 0:00:03]} 53. g4 {[%clk 0:00:04]}  Kh6 {[%clk 0:00:02]} 54. Kg2 {[%clk 0:00:03]}  Rf8 {[%clk 0:00:02]} 55. d8=Q {[%clk 0:00:02]}  Qxd8 {[%clk 0:00:02]} 56. Qe5 {[%clk 0:00:02]}  Qg5 {[%clk 0:00:02]} 57. Qxe4 {[%clk 0:00:02]}  Qd2+ {[%clk 0:00:02]} 58. Kg3 {[%clk 0:00:02]}  Qf2# {[%clk 0:00:02]} 0-1


[Site "https://www.chess.com"]

[Event "Titled Tuesday Blitz April 25 Late 2023"]
[White "Sabuk, Piotr"]
[Black "Svane, Rasmus"]
[WhiteFideId "1137565"]
[BlackFideId "4657101"]
[WhiteElo "2298"]
[BlackElo "2597"]
[Result "0-1"]
[Round "03"]
[TimeControl "180+2"]
[Date "2023.04.25"]
[WhiteClock "0:00:01"]
[BlackClock "0:00:43"]

1. d4 {[%clk 0:02:59]}  Nf6 {[%clk 0:02:59]} 2. c4 {[%clk 0:02:58]}  e6 {[%clk 0:02:59]} 3. Nc3 {[%clk 0:02:57]}  Bb4 {[%clk 0:02:59]} 4. e3 {[%clk 0:02:57]}  c5 {[%clk 0:02:56]} 5. Bd3 {[%clk 0:02:54]}  O-O {[%clk 0:02:56]} 6. Ne2 {[%clk 0:02:50]}  b6 {[%clk 0:02:56]} 7. d5 {[%clk 0:02:39]}  Bxc3+ {[%clk 0:02:40]} 8. Nxc3 {[%clk 0:02:38]}  exd5 {[%clk 0:02:41]} 9. cxd5 {[%clk 0:02:36]}  Ba6 {[%clk 0:02:41]} 10. Bxa6 {[%clk 0:02:23]}  Nxa6 {[%clk 0:02:42]} 11. O-O {[%clk 0:02:23]}  d6 {[%clk 0:02:42]} 12. e4 {[%clk 0:02:21]}  Nd7 {[%clk 0:02:32]} 13. Nb5 {[%clk 0:01:50]}  Nf6 {[%clk 0:02:16]} 14. Nc3 {[%clk 0:01:14]}  Re8 {[%clk 0:02:16]} 15. Re1 {[%clk 0:01:11]}  Nc7 {[%clk 0:02:14]} 16. Bf4 {[%clk 0:01:07]}  b5 {[%clk 0:02:11]} 17. Qf3 {[%clk 0:00:57]}  b4 {[%clk 0:02:11]} 18. Na4 {[%clk 0:00:47]}  Nb5 {[%clk 0:02:03]} 19. Bg5 {[%clk 0:00:29]}  Nd4 {[%clk 0:02:03]} 20. Qd3 {[%clk 0:00:28]}  Qd7 {[%clk 0:01:43]} 21. Bxf6 {[%clk 0:00:25]}  gxf6 {[%clk 0:01:44]} 22. b3 {[%clk 0:00:24]}  f5 {[%clk 0:01:38]} 23. Nb2 {[%clk 0:00:16]}  fxe4 {[%clk 0:01:37]} 24. Rxe4 {[%clk 0:00:16]}  Rxe4 {[%clk 0:01:38]} 25. Qxe4 {[%clk 0:00:17]}  Re8 {[%clk 0:01:39]} 26. Qd3 {[%clk 0:00:15]}  Qg4 {[%clk 0:01:28]} 27. Nc4 {[%clk 0:00:12]}  Ne2+ {[%clk 0:01:06]} 28. Kh1 {[%clk 0:00:10]}  Nf4 {[%clk 0:01:07]} 29. Qg3 {[%clk 0:00:09]}  Qxg3 {[%clk 0:01:04]} 30. hxg3 {[%clk 0:00:10]}  Nxd5 {[%clk 0:01:05]} 31. Nxd6 {[%clk 0:00:09]}  Re6 {[%clk 0:01:06]} 32. Nb7 {[%clk 0:00:09]}  Rc6 {[%clk 0:01:02]} 33. Rd1 {[%clk 0:00:07]}  Nc3 {[%clk 0:01:01]} 34. Rd8+ {[%clk 0:00:07]}  Kg7 {[%clk 0:01:02]} 35. Ra8 {[%clk 0:00:07]}  Rc7 {[%clk 0:00:44]} 36. Rxa7 {[%clk 0:00:01]}  Nb5 {[%clk 0:00:43]} 0-1


[Site "https://www.chess.com"]

[Event "Titled Tuesday Blitz April 25 Late 2023"]
[White "Hakobyan, Aram"]
[Black "Jaracz, Pawel"]
[WhiteFideId "13306677"]
[BlackFideId "1102222"]
[WhiteElo "2584"]
[BlackElo "2438"]
[Result "1-0"]
[Round "03"]
[TimeControl "180+2"]
[Date "2023.04.25"]
[WhiteClock "0:00:09"]
[BlackClock "0:00:03"]

1. d4 {[%clk 0:03:00]}  Nf6 {[%clk 0:02:59]} 2. c4 {[%clk 0:02:56]}  e6 {[%clk 0:02:59]} 3. Nc3 {[%clk 0:02:56]}  Bb4 {[%clk 0:02:59]} 4. e3 {[%clk 0:02:57]}  O-O {[%clk 0:02:58]} 5. a3 {[%clk 0:02:57]}  Bxc3+ {[%clk 0:02:57]} 6. bxc3 {[%clk 0:02:58]}  b6 {[%clk 0:02:55]} 7. Ne2 {[%clk 0:02:57]}  Nc6 {[%clk 0:02:54]} 8. Ng3 {[%clk 0:02:58]}  Ba6 {[%clk 0:02:53]} 9. e4 {[%clk 0:02:57]}  Ne8 {[%clk 0:02:52]} 10. Bd3 {[%clk 0:02:53]}  d6 {[%clk 0:02:50]} 11. O-O {[%clk 0:02:49]}  Na5 {[%clk 0:02:50]} 12. Qe2 {[%clk 0:02:48]}  c5 {[%clk 0:02:50]} 13. d5 {[%clk 0:02:46]}  Nb3 {[%clk 0:02:40]} 14. Rb1 {[%clk 0:02:45]}  Nxc1 {[%clk 0:02:40]} 15. Rbxc1 {[%clk 0:02:46]}  Nf6 {[%clk 0:02:28]} 16. f4 {[%clk 0:02:44]}  Re8 {[%clk 0:02:28]} 17. Qd2 {[%clk 0:02:32]}  exd5 {[%clk 0:02:04]} 18. cxd5 {[%clk 0:02:29]}  Bxd3 {[%clk 0:02:04]} 19. Qxd3 {[%clk 0:02:30]}  h5 {[%clk 0:01:55]} 20. Rce1 {[%clk 0:02:29]}  Qd7 {[%clk 0:01:48]} 21. c4 {[%clk 0:02:12]}  a6 {[%clk 0:01:34]} 22. e5 {[%clk 0:01:48]}  dxe5 {[%clk 0:01:26]} 23. fxe5 {[%clk 0:01:48]}  Ng4 {[%clk 0:01:27]} 24. Qc3 {[%clk 0:01:30]}  Qe7 {[%clk 0:01:17]} 25. Nf5 {[%clk 0:01:24]}  Qg5 {[%clk 0:01:09]} 26. h3 {[%clk 0:01:24]}  Nh6 {[%clk 0:00:52]} 27. Nd6 {[%clk 0:01:24]}  Re7 {[%clk 0:00:51]} 28. Ne4 {[%clk 0:00:58]}  Qg6 {[%clk 0:00:39]} 29. Qb2 {[%clk 0:00:19]}  Nf5 {[%clk 0:00:34]} 30. d6 {[%clk 0:00:18]}  Re6 {[%clk 0:00:33]} 31. Qxb6 {[%clk 0:00:16]}  Nd4 {[%clk 0:00:32]} 32. Qxc5 {[%clk 0:00:13]}  Nf5 {[%clk 0:00:23]} 33. Qd5 {[%clk 0:00:11]}  Rd8 {[%clk 0:00:22]} 34. c5 {[%clk 0:00:11]}  Nh4 {[%clk 0:00:21]} 35. Rf2 {[%clk 0:00:11]}  Rde8 {[%clk 0:00:14]} 36. d7 {[%clk 0:00:12]}  Rd8 {[%clk 0:00:14]} 37. c6 {[%clk 0:00:09]}  Rxc6 {[%clk 0:00:14]} 38. Nd6 {[%clk 0:00:10]}  Rc7 {[%clk 0:00:14]} 39. Rxf7 {[%clk 0:00:07]}  Kh7 {[%clk 0:00:12]} 40. e6 {[%clk 0:00:06]}  Rc5 {[%clk 0:00:12]} 41. Qe4 {[%clk 0:00:06]}  Qxe4 {[%clk 0:00:07]} 42. Nxe4 {[%clk 0:00:06]}  Re5 {[%clk 0:00:06]} 43. Nf6+ {[%clk 0:00:03]}  Kg6 {[%clk 0:00:07]} 44. Rxe5 {[%clk 0:00:04]}  Nf5 {[%clk 0:00:05]} 45. e7 {[%clk 0:00:05]}  Nxe7 {[%clk 0:00:04]} 46. Rexe7 {[%clk 0:00:06]}  Rb8 {[%clk 0:00:03]} 47. Re8 {[%clk 0:00:06]}  Rb1+ {[%clk 0:00:03]} 48. Kh2 {[%clk 0:00:07]}  Rb3 {[%clk 0:00:03]} 49. d8=Q {[%clk 0:00:07]}  Kxf7 {[%clk 0:00:03]} 50. Rf8+ {[%clk 0:00:06]}  Kg6 {[%clk 0:00:03]} 51. Nd5 {[%clk 0:00:07]}  Rb5 {[%clk 0:00:03]} 52. Nf4+ {[%clk 0:00:08]}  Kh7 {[%clk 0:00:03]} 53. Rh8# {[%clk 0:00:09]} 1-0


[Site "https://www.chess.com"]

[Event "Titled Tuesday Blitz April 25 Late 2023"]
[White "Donchenko, Alexander"]
[Black "Makaraci, Tunahan"]
[WhiteFideId "24603295"]
[BlackFideId "6356559"]
[WhiteElo "2542"]
[BlackElo "2160"]
[Result "0-1"]
[Round "03"]
[TimeControl "180+2"]
[Date "2023.04.25"]
[WhiteClock "0:00:28"]
[BlackClock "0:00:13"]

1. Nf3 {[%clk 0:03:00]}  d5 {[%clk 0:02:58]} 2. g3 {[%clk 0:03:01]}  c5 {[%clk 0:02:59]} 3. Bg2 {[%clk 0:03:01]}  Nc6 {[%clk 0:02:59]} 4. d4 {[%clk 0:03:02]}  Nf6 {[%clk 0:03:00]} 5. O-O {[%clk 0:03:01]}  e6 {[%clk 0:03:00]} 6. c4 {[%clk 0:03:01]}  cxd4 {[%clk 0:03:00]} 7. Nxd4 {[%clk 0:03:01]}  Bc5 {[%clk 0:03:01]} 8. Nb3 {[%clk 0:03:01]}  Bb6 {[%clk 0:03:01]} 9. Nc3 {[%clk 0:02:59]}  d4 {[%clk 0:02:51]} 10. Na4 {[%clk 0:02:58]}  e5 {[%clk 0:02:42]} 11. Nxb6 {[%clk 0:02:54]}  axb6 {[%clk 0:02:42]} 12. e3 {[%clk 0:02:54]}  d3 {[%clk 0:02:37]} 13. Bd2 {[%clk 0:02:50]}  O-O {[%clk 0:02:36]} 14. Bc3 {[%clk 0:02:50]}  Re8 {[%clk 0:02:28]} 15. e4 {[%clk 0:02:44]}  Be6 {[%clk 0:02:22]} 16. c5 {[%clk 0:02:39]}  b5 {[%clk 0:02:02]} 17. Qd2 {[%clk 0:02:31]}  Bc4 {[%clk 0:01:53]} 18. Nc1 {[%clk 0:02:25]}  b4 {[%clk 0:01:37]} 19. Bxb4 {[%clk 0:02:18]}  Nxb4 {[%clk 0:01:37]} 20. Qxb4 {[%clk 0:02:18]}  d2 {[%clk 0:01:34]} 21. Qxc4 {[%clk 0:02:18]}  d1=Q {[%clk 0:01:34]} 22. Rxd1 {[%clk 0:02:17]}  Qxd1+ {[%clk 0:01:35]} 23. Qf1 {[%clk 0:02:17]}  Qd4 {[%clk 0:01:32]} 24. Nd3 {[%clk 0:02:11]}  Red8 {[%clk 0:01:27]} 25. Rd1 {[%clk 0:02:10]}  Rxa2 {[%clk 0:01:17]} 26. b4 {[%clk 0:02:08]}  Nxe4 {[%clk 0:00:48]} 27. Nc1 {[%clk 0:00:48]}  Qxf2+ {[%clk 0:00:34]} 28. Qxf2 {[%clk 0:00:46]}  Rxd1+ {[%clk 0:00:32]} 29. Qf1 {[%clk 0:00:44]}  Rxf1+ {[%clk 0:00:30]} 30. Kxf1 {[%clk 0:00:45]}  Ra1 {[%clk 0:00:29]} 31. Bxe4 {[%clk 0:00:45]}  Rxc1+ {[%clk 0:00:29]} 32. Ke2 {[%clk 0:00:46]}  Rc4 {[%clk 0:00:18]} 33. Bxb7 {[%clk 0:00:45]}  Rxb4 {[%clk 0:00:18]} 34. Bd5 {[%clk 0:00:39]}  Kf8 {[%clk 0:00:18]} 35. c6 {[%clk 0:00:39]}  Rb8 {[%clk 0:00:16]} 36. Kd3 {[%clk 0:00:37]}  Ke7 {[%clk 0:00:16]} 37. Kc4 {[%clk 0:00:37]}  Kd6 {[%clk 0:00:16]} 38. Bxf7 {[%clk 0:00:35]}  Kxc6 {[%clk 0:00:15]} 39. Kd3 {[%clk 0:00:36]}  Kd6 {[%clk 0:00:15]} 40. Ke3 {[%clk 0:00:35]}  Rf8 {[%clk 0:00:16]} 41. Bc4 {[%clk 0:00:35]}  Rc8 {[%clk 0:00:16]} 42. Bd3 {[%clk 0:00:35]}  h6 {[%clk 0:00:16]} 43. Bf5 {[%clk 0:00:35]}  Rc3+ {[%clk 0:00:16]} 44. Kd2 {[%clk 0:00:35]}  Ra3 {[%clk 0:00:16]} 45. Ke1 {[%clk 0:00:30]}  Ra2 {[%clk 0:00:15]} 46. h4 {[%clk 0:00:29]}  Rb2 {[%clk 0:00:15]} 47. Kf1 {[%clk 0:00:29]}  Kc5 {[%clk 0:00:16]} 48. Be4 {[%clk 0:00:28]}  Kd4 {[%clk 0:00:16]} 49. Bf5 {[%clk 0:00:28]}  e4 {[%clk 0:00:16]} 50. Bg4 {[%clk 0:00:28]}  e3 {[%clk 0:00:14]} 51. Ke1 {[%clk 0:00:28]}  Rg2 {[%clk 0:00:13]} 0-1


[Site "https://www.chess.com"]

[Event "Titled Tuesday Blitz April 25 Late 2023"]
[White "Ladan, Nicholas"]
[Black "Quesada Perez, Yasser"]
[WhiteFideId "30918855"]
[BlackFideId "3509362"]
[WhiteElo "2167"]
[BlackElo "2496"]
[Result "0-1"]
[Round "03"]
[TimeControl "180+2"]
[Date "2023.04.25"]
[WhiteClock "0:00:29"]
[BlackClock "0:00:47"]

1. d4 {[%clk 0:02:59]}  Nf6 {[%clk 0:02:59]} 2. Nf3 {[%clk 0:02:59]}  e6 {[%clk 0:02:58]} 3. Bf4 {[%clk 0:02:59]}  d5 {[%clk 0:02:58]} 4. e3 {[%clk 0:03:00]}  Bd6 {[%clk 0:02:58]} 5. Nbd2 {[%clk 0:02:59]}  O-O {[%clk 0:02:55]} 6. Bd3 {[%clk 0:02:58]}  c5 {[%clk 0:02:56]} 7. c3 {[%clk 0:02:57]}  Bxf4 {[%clk 0:02:53]} 8. exf4 {[%clk 0:02:57]}  Qd6 {[%clk 0:02:53]} 9. Ne5 {[%clk 0:02:56]}  cxd4 {[%clk 0:02:48]} 10. cxd4 {[%clk 0:02:56]}  Nc6 {[%clk 0:02:49]} 11. Ndf3 {[%clk 0:02:53]}  Bd7 {[%clk 0:02:46]} 12. O-O {[%clk 0:02:43]}  Rfc8 {[%clk 0:02:43]} 13. a3 {[%clk 0:02:40]}  Na5 {[%clk 0:02:34]} 14. Qe2 {[%clk 0:02:26]}  Nb3 {[%clk 0:02:23]} 15. Rad1 {[%clk 0:02:24]}  a5 {[%clk 0:02:22]} 16. g4 {[%clk 0:02:16]}  Bc6 {[%clk 0:02:05]} 17. Qe3 {[%clk 0:02:08]}  a4 {[%clk 0:02:01]} 18. Ng5 {[%clk 0:02:08]}  Be8 {[%clk 0:01:59]} 19. h4 {[%clk 0:01:46]}  h6 {[%clk 0:01:41]} 20. Kg2 {[%clk 0:01:46]}  Nd7 {[%clk 0:01:23]} 21. Ngf3 {[%clk 0:01:40]}  Nxe5 {[%clk 0:01:22]} 22. fxe5 {[%clk 0:01:39]}  Qe7 {[%clk 0:01:13]} 23. g5 {[%clk 0:01:31]}  h5 {[%clk 0:01:13]} 24. g6 {[%clk 0:01:27]}  fxg6 {[%clk 0:01:03]} 25. Ng5 {[%clk 0:01:27]}  Na5 {[%clk 0:00:57]} 26. Qh3 {[%clk 0:01:24]}  Bf7 {[%clk 0:00:56]} 27. Rc1 {[%clk 0:01:19]}  Nc4 {[%clk 0:00:56]} 28. Bxc4 {[%clk 0:01:10]}  Rxc4 {[%clk 0:00:55]} 29. Rxc4 {[%clk 0:01:09]}  dxc4 {[%clk 0:00:56]} 30. Ne4 {[%clk 0:01:07]}  Be8 {[%clk 0:00:56]} 31. f3 {[%clk 0:01:04]}  Bc6 {[%clk 0:00:55]} 32. Nd6 {[%clk 0:01:03]}  Bd5 {[%clk 0:00:55]} 33. Qg3 {[%clk 0:01:03]}  Kh7 {[%clk 0:00:54]} 34. Kh3 {[%clk 0:00:56]}  g5 {[%clk 0:00:51]} 35. Rg1 {[%clk 0:00:47]}  Rf8 {[%clk 0:00:47]} 36. Ne4 {[%clk 0:00:31]}  Bxe4 {[%clk 0:00:47]} 37. fxe4 {[%clk 0:00:31]}  g4+ {[%clk 0:00:47]} 38. Kh2 {[%clk 0:00:31]}  Rf3 {[%clk 0:00:48]} 39. Qg2 {[%clk 0:00:29]}  Qxh4+ {[%clk 0:00:47]} 0-1


[Site "https://www.chess.com"]

[Event "Titled Tuesday Blitz April 25 Late 2023"]
[White "Naroditsky, Daniel"]
[Black "Pesotskiy, Mikhail"]
[WhiteFideId "2026961"]
[BlackFideId "34164453"]
[WhiteElo "2633"]
[BlackElo "2131"]
[Result "1-0"]
[Round "03"]
[TimeControl "180+2"]
[Date "2023.04.25"]
[WhiteClock "0:01:47"]
[BlackClock "0:01:25"]

1. e4 {[%clk 0:03:00]}  e6 {[%clk 0:02:49]} 2. d4 {[%clk 0:03:00]}  d5 {[%clk 0:02:50]} 3. Nd2 {[%clk 0:03:00]}  Nf6 {[%clk 0:02:50]} 4. e5 {[%clk 0:03:00]}  Nfd7 {[%clk 0:02:51]} 5. Bd3 {[%clk 0:03:01]}  c5 {[%clk 0:02:51]} 6. c3 {[%clk 0:03:02]}  Nc6 {[%clk 0:02:52]} 7. Ngf3 {[%clk 0:03:02]}  Qb6 {[%clk 0:02:52]} 8. O-O {[%clk 0:03:02]}  cxd4 {[%clk 0:02:53]} 9. cxd4 {[%clk 0:03:03]}  Nxd4 {[%clk 0:02:53]} 10. Nxd4 {[%clk 0:03:04]}  Qxd4 {[%clk 0:02:54]} 11. Nf3 {[%clk 0:03:05]}  Qb6 {[%clk 0:02:54]} 12. Qa4 {[%clk 0:03:05]}  Qb4 {[%clk 0:02:54]} 13. Qc2 {[%clk 0:03:06]}  Qc5 {[%clk 0:02:55]} 14. Qe2 {[%clk 0:03:06]}  Qb6 {[%clk 0:02:56]} 15. a3 {[%clk 0:02:54]}  a5 {[%clk 0:02:55]} 16. Bf4 {[%clk 0:02:40]}  Be7 {[%clk 0:02:51]} 17. Rac1 {[%clk 0:02:39]}  O-O {[%clk 0:02:29]} 18. h4 {[%clk 0:02:37]}  f6 {[%clk 0:02:24]} 19. exf6 {[%clk 0:02:32]}  Nxf6 {[%clk 0:02:20]} 20. Bc7 {[%clk 0:02:24]}  Qa7 {[%clk 0:02:09]} 21. Ng5 {[%clk 0:02:23]}  Re8 {[%clk 0:01:51]} 22. Bxh7+ {[%clk 0:01:47]}  Nxh7 {[%clk 0:01:49]} 23. Qh5 {[%clk 0:01:47]}  Nf6 {[%clk 0:01:43]} 24. Qf7+ {[%clk 0:01:47]}  Kh8 {[%clk 0:01:44]} 25. Be5 {[%clk 0:01:47]}  Bd7 {[%clk 0:01:25]} 26. Rc7 {[%clk 0:01:47]} 1-0


[Site "https://www.chess.com"]

[Event "Titled Tuesday Blitz April 25 Late 2023"]
[White "Andreikin, Dmitry"]
[Black "Averjanov, Alexey"]
[WhiteFideId "4158814"]
[BlackFideId "14109867"]
[WhiteElo "2736"]
[BlackElo "2399"]
[Result "1-0"]
[Round "03"]
[TimeControl "180+2"]
[Date "2023.04.25"]
[WhiteClock "0:00:05"]
[BlackClock "0:00:01"]

1. e4 {[%clk 0:03:00]}  c6 {[%clk 0:02:59]} 2. f4 {[%clk 0:02:55]}  d5 {[%clk 0:02:56]} 3. d3 {[%clk 0:02:55]}  g6 {[%clk 0:02:53]} 4. Nf3 {[%clk 0:02:54]}  Bg7 {[%clk 0:02:47]} 5. e5 {[%clk 0:02:54]}  h5 {[%clk 0:02:42]} 6. d4 {[%clk 0:02:51]}  Bg4 {[%clk 0:02:39]} 7. Nbd2 {[%clk 0:02:50]}  Nh6 {[%clk 0:02:33]} 8. Bd3 {[%clk 0:02:46]}  Nd7 {[%clk 0:02:24]} 9. c3 {[%clk 0:02:40]}  e6 {[%clk 0:02:20]} 10. Qb3 {[%clk 0:02:40]}  Qc7 {[%clk 0:02:16]} 11. Ng5 {[%clk 0:02:35]}  Bf5 {[%clk 0:02:11]} 12. Be2 {[%clk 0:02:32]}  O-O {[%clk 0:02:05]} 13. Ndf3 {[%clk 0:02:20]}  c5 {[%clk 0:02:02]} 14. Be3 {[%clk 0:02:18]}  Ng4 {[%clk 0:01:55]} 15. Bg1 {[%clk 0:02:17]}  c4 {[%clk 0:01:52]} 16. Qd1 {[%clk 0:02:16]}  f6 {[%clk 0:01:46]} 17. exf6 {[%clk 0:01:52]}  Ngxf6 {[%clk 0:01:47]} 18. Be3 {[%clk 0:01:47]}  Ng4 {[%clk 0:01:42]} 19. Bd2 {[%clk 0:01:37]}  Rae8 {[%clk 0:01:38]} 20. O-O {[%clk 0:01:24]}  b5 {[%clk 0:01:32]} 21. a3 {[%clk 0:01:24]}  a5 {[%clk 0:01:32]} 22. g3 {[%clk 0:01:21]}  Ngf6 {[%clk 0:01:26]} 23. Nh4 {[%clk 0:01:16]}  Qd6 {[%clk 0:01:20]} 24. Bf3 {[%clk 0:01:12]}  Re7 {[%clk 0:01:15]} 25. Re1 {[%clk 0:01:12]}  Rfe8 {[%clk 0:01:10]} 26. Re5 {[%clk 0:01:04]}  Bh6 {[%clk 0:01:02]} 27. Qe2 {[%clk 0:01:00]}  Bxg5 {[%clk 0:00:56]} 28. fxg5 {[%clk 0:00:59]}  Ng4 {[%clk 0:00:56]} 29. Bxg4 {[%clk 0:00:53]}  Bxg4 {[%clk 0:00:54]} 30. Qe1 {[%clk 0:00:45]}  Kg7 {[%clk 0:00:47]} 31. Bf4 {[%clk 0:00:44]}  Qc6 {[%clk 0:00:43]} 32. Qe3 {[%clk 0:00:37]}  Bf5 {[%clk 0:00:38]} 33. Nxf5+ {[%clk 0:00:34]}  gxf5 {[%clk 0:00:39]} 34. Qe2 {[%clk 0:00:27]}  Kg6 {[%clk 0:00:38]} 35. Re3 {[%clk 0:00:28]}  Qb6 {[%clk 0:00:33]} 36. Kg2 {[%clk 0:00:23]}  b4 {[%clk 0:00:31]} 37. axb4 {[%clk 0:00:23]}  axb4 {[%clk 0:00:32]} 38. Kh3 {[%clk 0:00:23]}  b3 {[%clk 0:00:30]} 39. Kh4 {[%clk 0:00:22]}  Kg7 {[%clk 0:00:26]} 40. Re1 {[%clk 0:00:19]}  Nf8 {[%clk 0:00:24]} 41. Be5+ {[%clk 0:00:18]}  Kg8 {[%clk 0:00:22]} 42. Bf6 {[%clk 0:00:18]}  Rh7 {[%clk 0:00:20]} 43. Kh3 {[%clk 0:00:14]}  Qd6 {[%clk 0:00:19]} 44. Re5 {[%clk 0:00:12]}  h4 {[%clk 0:00:17]} 45. g4 {[%clk 0:00:09]}  Ng6 {[%clk 0:00:15]} 46. Qf3 {[%clk 0:00:06]}  Nxe5 {[%clk 0:00:12]} 47. Rxe5 {[%clk 0:00:07]}  fxg4+ {[%clk 0:00:10]} 48. Qxg4 {[%clk 0:00:08]}  Qf8 {[%clk 0:00:08]} 49. Rxe6 {[%clk 0:00:07]}  Rxe6 {[%clk 0:00:07]} 50. Qxe6+ {[%clk 0:00:08]}  Qf7 {[%clk 0:00:08]} 51. Qc8+ {[%clk 0:00:08]}  Qf8 {[%clk 0:00:08]} 52. Qf5 {[%clk 0:00:09]}  Rg7 {[%clk 0:00:01]} 53. Qxd5+ {[%clk 0:00:08]}  Rf7 {[%clk 0:00:01]} 54. g6 {[%clk 0:00:05]}  Qc8+ {[%clk 0:00:01]} 55. Kxh4 {[%clk 0:00:05]} 1-0


[Site "https://www.chess.com"]

[Event "Titled Tuesday Blitz April 25 Late 2023"]
[White "Ghazarian, Kirk"]
[Black "Musovic, Armin"]
[WhiteFideId "30908604"]
[BlackFideId "939935"]
[WhiteElo "2346"]
[BlackElo "2322"]
[Result "1-0"]
[Round "03"]
[TimeControl "180+2"]
[Date "2023.04.25"]
[WhiteClock "0:00:16"]
[BlackClock "0:00:02"]

1. d4 {[%clk 0:03:00]}  d5 {[%clk 0:02:59]} 2. Nf3 {[%clk 0:03:01]}  c5 {[%clk 0:03:00]} 3. dxc5 {[%clk 0:02:59]}  Nf6 {[%clk 0:02:58]} 4. Bf4 {[%clk 0:02:58]}  Nc6 {[%clk 0:02:57]} 5. e3 {[%clk 0:02:57]}  Bg4 {[%clk 0:02:56]} 6. Bb5 {[%clk 0:02:51]}  e6 {[%clk 0:02:50]} 7. b4 {[%clk 0:02:38]}  Rc8 {[%clk 0:02:24]} 8. O-O {[%clk 0:02:35]}  Be7 {[%clk 0:02:20]} 9. h3 {[%clk 0:02:32]}  Bxf3 {[%clk 0:02:19]} 10. Qxf3 {[%clk 0:02:33]}  O-O {[%clk 0:02:20]} 11. c3 {[%clk 0:02:23]}  Ne4 {[%clk 0:01:53]} 12. Bd3 {[%clk 0:02:06]}  e5 {[%clk 0:01:45]} 13. Bh2 {[%clk 0:01:59]}  f5 {[%clk 0:01:42]} 14. Qe2 {[%clk 0:01:53]}  a6 {[%clk 0:01:09]} 15. a3 {[%clk 0:01:48]}  Bh4 {[%clk 0:01:07]} 16. c4 {[%clk 0:01:40]}  Kh8 {[%clk 0:00:57]} 17. cxd5 {[%clk 0:01:35]}  Qxd5 {[%clk 0:00:57]} 18. Bxe4 {[%clk 0:01:32]}  fxe4 {[%clk 0:00:47]} 19. Nc3 {[%clk 0:01:30]}  Qd3 {[%clk 0:00:22]} 20. Qxd3 {[%clk 0:01:30]}  exd3 {[%clk 0:00:23]} 21. Rad1 {[%clk 0:01:30]}  Rcd8 {[%clk 0:00:22]} 22. Ne4 {[%clk 0:01:30]}  h6 {[%clk 0:00:19]} 23. Rd2 {[%clk 0:01:28]}  a5 {[%clk 0:00:19]} 24. b5 {[%clk 0:01:26]}  Ne7 {[%clk 0:00:12]} 25. Bxe5 {[%clk 0:01:25]}  Nd5 {[%clk 0:00:09]} 26. Rxd3 {[%clk 0:01:05]}  Rfe8 {[%clk 0:00:08]} 27. f4 {[%clk 0:01:00]}  Nxf4 {[%clk 0:00:06]} 28. Rxd8 {[%clk 0:00:54]}  Ne2+ {[%clk 0:00:06]} 29. Kh2 {[%clk 0:00:45]}  Bxd8 {[%clk 0:00:07]} 30. Ng3 {[%clk 0:00:43]}  Rxe5 {[%clk 0:00:05]} 31. Rf8+ {[%clk 0:00:32]}  Kh7 {[%clk 0:00:05]} 32. Rxd8 {[%clk 0:00:31]}  Nxg3 {[%clk 0:00:04]} 33. Kxg3 {[%clk 0:00:32]}  Rxc5 {[%clk 0:00:03]} 34. a4 {[%clk 0:00:29]}  Rc4 {[%clk 0:00:02]} 35. Rd4 {[%clk 0:00:29]}  Rc3 {[%clk 0:00:02]} 36. Kf3 {[%clk 0:00:27]}  Ra3 {[%clk 0:00:02]} 37. g4 {[%clk 0:00:23]}  Kg6 {[%clk 0:00:03]} 38. Ke4 {[%clk 0:00:20]}  Kf6 {[%clk 0:00:02]} 39. h4 {[%clk 0:00:17]}  Ke6 {[%clk 0:00:03]} 40. h5 {[%clk 0:00:17]}  Ra1 {[%clk 0:00:02]} 41. Rc4 {[%clk 0:00:16]}  Kd6 {[%clk 0:00:02]} 42. Kf5 {[%clk 0:00:16]} 1-0


[Site "https://www.chess.com"]